[Event "ONJK-C 2019"]
[Site "Borne"]
[Date "2019.08.06"]
[Round "2.7"]
[White "Knol, Daniel"]
[Black "Alvares, Thomas"]
[Result "1/2-1/2"]
[ECO "B50"]
[WhiteElo "1662"]
[BlackElo "1408"]
[Annotator "NA"]
[PlyCount "50"]
[EventDate "2019.08.05"]
[EventType "swiss"]
[EventCountry "NED"]
[SourceTitle "playchess.com"]
[Source "ChessBase"]
[SourceQuality "1"]
[TimeControl "5400+30"]

1. e4 {[%emt 0:00:00]} c5 {[%emt 0:00:00]} 2. Nf3 {[%emt 0:00:02]} d6 {[%emt 0:00:00]} 3. c3 {[%emt 0:00:13]} Nf6 {[%emt 0:01:49]} 4. Be2 {[%emt 0:00:11]} g6 {[%emt 0:01:38]} 5. O-O {[%emt 0:00:13]} Bg7 {[%emt 0:00:17]} 6. Qc2 {[%emt 0:00:28]} O-O {[%emt 0:00:28]} 7. d4 {[%emt 0:00:10]} Qc7 {[%emt 0:04:42]} 8. Na3 {[%emt 0:01:58]} a6 {[%emt 0:01:54]} 9. d5 {[%emt 0:00:13]} Nbd7 {[%emt 0:08:53]} 10. c4 {[%emt 0:05:32]} Nb6 {[%emt 0:04:28]} 11. h3 {[%emt 0:02:36]} Bd7 {[%emt 0:08:59]} 12. Bf4 {[%emt 0:02:16]} Nh5 {[%emt 0:02:49]} 13. Bh2 {[%emt 0:02:29]} Rab8 {[%emt 0:08:44]} 14. e5 {[%emt 0:08:22]} dxe5 {[%emt 0:01:42]} 15. g4 {[%emt 0:19:25]} Nf4 {[%emt 0:01:03]} 16. Bxf4 {[%emt 0:00:06]} exf4 {[%emt 0:00:22]} 17. Rab1 {[%emt 0:00:26]} e6 {[%emt 0:09:27]} 18. Rfc1 {[%emt 0:02:33]} Rfe8 {[%emt 0:05:40]} 19. Bf1 {[%emt 0:05:55]} Rbc8 {[%emt 0:02:28]} 20. dxe6 {[%emt 0:01:27]} Bxe6 {[%emt 0:01:24]} 21. Bg2 {[%emt 0:02:44]} Bd7 {[%emt 0:03:22]} 22. Qd2 {[%emt 0:04:01]} Rcd8 {[%emt 0:01:47]} 23. Qa5 {[%emt 0:01:17]} Qd6 {[%emt 0:08:10]} 24. Rd1 {[%emt 0:03:39]} Qc7 {[%emt 0:02:55]} 25. b4 {[%emt 0:00:30]} Rc8 {[%emt 0:00:30]} 1/2-1/2

[Event "ONJK-C 2019"]
[Site "Borne"]
[Date "2019.08.06"]
[Round "2.8"]
[White "Zaalmink, Bram"]
[Black "De Heij, Mees"]
[Result "0-1"]
[ECO "D12"]
[WhiteElo "1367"]
[BlackElo "1617"]
[Annotator "NA"]
[PlyCount "80"]
[EventDate "2019.08.05"]
[EventType "swiss"]
[EventCountry "NED"]
[SourceTitle "playchess.com"]
[Source "ChessBase"]
[SourceQuality "1"]
[TimeControl "5400+30"]

1. d4 {[%emt 0:00:00]} d5 {[%emt 0:00:00]} 2. c4 {[%emt 0:00:09]} c6 {[%emt 0:00:00]} 3. Nf3 {[%emt 0:01:23]} Nf6 {[%emt 0:00:44]} 4. Nbd2 {[%emt 0:01:02]} Bf5 {[%emt 0:00:21]} 5. e3 {[%emt 0:01:17]} e6 {[%emt 0:00:38]} 6. b3 {[%emt 0:03:17]} Bb4 {[%emt 0:01:28]} 7. Bb2 {[%emt 0:02:35]} Ne4 {[%emt 0:01:20]} 8. a3 {[%emt 0:02:03]} Ba5 {[%emt 0:04:18]} 9. b4 {[%emt 0:01:36]} Bc7 {[%emt 0:00:28]} 10. Be2 {[%emt 0:01:26]} O-O {[%emt 0:00:34]} 11. O-O {[%emt 0:01:40]} Nd7 {[%emt 0:03:06]} 12. Rc1 {[%emt 0:06:11]} Ndf6 {[%emt 0:03:21]} 13. Ne5 {[%emt 0:09:24]} Nxd2 {[%emt 0:08:40]} 14. Qxd2 {[%emt 0:01:29]} Ne4 {[%emt 0:00:33]} 15. Qe1 {[%emt 0:01:44]} Bb8 {[%emt 0:07:03]} 16. f3 {[%emt 0:02:14]} Nf6 {[%emt 0:00:50]} 17. Nd3 {[%emt 0:03:51]} Qc7 {[%emt 0:01:06]} 18. f4 {[%emt 0:01:33]} Ne4 {[%emt 0:01:27]} 19. g4 {[%emt 0:02:28]} Bg6 {[%emt 0:00:07]} 20. h4 {[%emt 0:02:46]} f5 {[%emt 0:00:56]} 21. Ne5 {[%emt 0:00:57]} Be8 {[%emt 0:01:39]} 22. g5 {[%emt 0:05:32]} Qe7 {[%emt 0:01:52]} 23. Kh2 {[%emt 0:02:14]} Bxe5 {[%emt 0:00:10]} 24. dxe5 {[%emt 0:01:36]} g6 {[%emt 0:01:28]} 25. Rc2 {[%emt 0:11:28]} Rd8 {[%emt 0:02:00]} 26. Bd4 {[%emt 0:01:13]} b6 {[%emt 0:02:00]} 27. c5 {[%emt 0:02:08]} b5 {[%emt 0:00:16]} 28. a4 {[%emt 0:03:08]} a6 {[%emt 0:04:29]} 29. axb5 {[%emt 0:00:57]} axb5 {[%emt 0:00:08]} 30. Ra2 {[%emt 0:00:16]} Bf7 {[%emt 0:01:08]} 31. Qa1 {[%emt 0:01:21]} Rd7 {[%emt 0:01:27]} 32. Ra6 {[%emt 0:00:35]} Rc7 {[%emt 0:00:22]} 33. Qa2 {[%emt 0:00:29]} Be8 {[%emt 0:03:15]} 34. Ra1 {[%emt 0:01:15]} h6 {[%emt 0:02:33]} 35. Ra7 {[%emt 0:00:50]} hxg5 {[%emt 0:01:46]} 36. Rxc7 {[%emt 0:03:09]} Qxc7 {[%emt 0:00:18]} 37. fxg5 {[%emt 0:03:29]} Qh7 {[%emt 0:01:01]} 38. Kh3 {[%emt 0:01:43]} Nxg5+ {[%emt 0:00:24]} 39. Kg3 {[%emt 0:00:10]} Ne4+ {[%emt 0:00:06]} 40. Kh3 {[%emt 0:01:58]} g5 {[%emt 0:00:51]} 0-1

[Event "ONJK-C 2019"]
[Site "Borne"]
[Date "2019.08.06"]
[Round "2.9"]
[White "De Jong, Mats"]
[Black "Dhaenens, Leon"]
[Result "1-0"]
[ECO "B13"]
[WhiteElo "1356"]
[BlackElo "1583"]
[Annotator "NA"]
[PlyCount "57"]
[EventDate "2019.08.05"]
[EventType "swiss"]
[EventCountry "NED"]
[SourceTitle "playchess.com"]
[Source "ChessBase"]
[SourceQuality "1"]
[TimeControl "5400+30"]

1. d4 {[%emt 0:00:00]} Nf6 {[%emt 0:00:00]} 2. c4 {[%emt 0:00:00]} c5 {[%emt 0:00:06]} 3. e3 {[%emt 0:00:38]} cxd4 {[%emt 0:01:07]} 4. exd4 {[%emt 0:00:26]} d5 {[%emt 0:00:12]} 5. Nc3 {[%emt 0:01:48]} Nc6 {[%emt 0:03:15]} 6. cxd5 {[%emt 0:01:31]} Nxd5 {[%emt 0:00:40]} 7. Nf3 {[%emt 0:03:01]} Bg4 {[%emt 0:05:14]} 8. h3 {[%emt 0:02:12]} Bxf3 {[%emt 0:03:42]} 9. Qxf3 {[%emt 0:00:09]} Ndb4 {[%emt 0:07:25]} 10. Bb5 {[%emt 0:08:11]} Qxd4 {[%emt 0:02:52]} 11. O-O {[%emt 0:17:27]} a6 {[%emt 0:05:43]} 12. Ba4 {[%emt 0:08:52]} O-O-O {[%emt 0:15:23]} 13. a3 {[%emt 0:03:07]} Ne5 {[%emt 0:05:28]} 14. Qe2 {[%emt 0:06:38]} Nbc6 {[%emt 0:04:25]} 15. Be3 {[%emt 0:05:11]} Qd3 {[%emt 0:02:15]} 16. Bxc6 {[%emt 0:03:27]} Nxc6 {[%emt 0:02:10]} 17. Qf3 {[%emt 0:00:44]} f6 {[%emt 0:02:19]} 18. Rfd1 {[%emt 0:01:31]} Qg6 {[%emt 0:04:06]} 19. Rxd8+ {[%emt 0:01:04]} Kxd8 {[%emt 0:04:54]} 20. Bb6+ {[%emt 0:04:33]} Kc8 {[%emt 0:05:43]} 21. Rc1 {[%emt 0:01:26]} e6 {[%emt 0:03:25]} 22. Nb5 {[%emt 0:03:45]} Kd7 {[%emt 0:03:10]} 23. Nd4 {[%emt 0:06:32]} Qg5 {[%emt 0:03:10]} 24. Rxc6 {[%emt 0:03:08]} Qd2 {[%emt 0:01:11]} 25. Rc7+ {[%emt 0:02:42]} Ke8 {[%emt 0:00:17]} 26. Rc8+ {[%emt 0:00:51]} Kf7 {[%emt 0:00:14]} 27. Qxb7+ {[%emt 0:00:42]} Kg6 {[%emt 0:00:10]} 28. Qe4+ {[%emt 0:00:45]} Kh6 {[%emt 0:01:06]} 29. Qe3+ {[%emt 0:00:52]} 1-0

[Event "ONJK-C 2019"]
[Site "Borne"]
[Date "2019.08.06"]
[Round "2.10"]
[White "Kumar, Prajit Sai"]
[Black "Tiggelman, Vincent"]
[Result "1/2-1/2"]
[ECO "D10"]
[WhiteElo "1574"]
[BlackElo "1358"]
[Annotator "NA"]
[PlyCount "56"]
[EventDate "2019.08.05"]
[EventType "swiss"]
[EventCountry "NED"]
[SourceTitle "playchess.com"]
[Source "ChessBase"]
[SourceQuality "1"]
[TimeControl "5400+30"]

1. d4 {[%emt 0:00:00]} c6 {[%emt 0:00:00]} 2. c4 {[%emt 0:00:00]} d5 {[%emt 0:00:00]} 3. cxd5 {[%emt 0:00:00]} cxd5 {[%emt 0:00:00]} 4. Nc3 {[%emt 0:00:00]} e6 {[%emt 0:00:09]} 5. Nf3 {[%emt 0:00:10]} Nc6 {[%emt 0:01:03]} 6. Bf4 {[%emt 0:00:44]} Bd6 {[%emt 0:04:08]} 7. Bxd6 {[%emt 0:01:33]} Qxd6 {[%emt 0:00:52]} 8. e3 {[%emt 0:00:53]} Nge7 {[%emt 0:00:48]} 9. a3 {[%emt 0:02:02]} O-O {[%emt 0:00:29]} 10. Bd3 {[%emt 0:00:31]} Rd8 {[%emt 0:03:26]} 11. O-O {[%emt 0:01:43]} e5 {[%emt 0:01:03]} 12. dxe5 {[%emt 0:02:11]} Nxe5 {[%emt 0:00:22]} 13. Nxe5 {[%emt 0:00:41]} Qxe5 {[%emt 0:00:10]} 14. Qc2 {[%emt 0:01:38]} g6 {[%emt 0:01:34]} 15. Nb5 {[%emt 0:03:48]} Be6 {[%emt 0:03:05]} 16. Nd4 {[%emt 0:02:46]} Rac8 {[%emt 0:01:25]} 17. Qd2 {[%emt 0:00:28]} Nc6 {[%emt 0:01:24]} 18. Nxc6 {[%emt 0:00:53]} Rxc6 {[%emt 0:01:05]} 19. Rac1 {[%emt 0:01:24]} Rcc8 {[%emt 0:01:38]} 20. Rxc8 {[%emt 0:00:58]} Rxc8 {[%emt 0:01:19]} 21. f4 {[%emt 0:05:40]} Qd6 {[%emt 0:01:42]} 22. f5 {[%emt 0:03:05]} Bd7 {[%emt 0:00:34]} 23. fxg6 {[%emt 0:01:03]} hxg6 {[%emt 0:00:11]} 24. Bb1 {[%emt 0:06:12]} Be6 {[%emt 0:00:54]} 25. Rd1 {[%emt 0:00:33]} Qb6 {[%emt 0:01:34]} 26. Kh1 {[%emt 0:03:45]} Qc6 {[%emt 0:07:34]} 27. h3 {[%emt 0:02:01]} b6 {[%emt 0:14:37]} 28. Bd3 {[%emt 0:04:35]} Qa4 {[%emt 0:09:31]} 1/2-1/2

[Event "ONJK-C 2019"]
[Site "Borne"]
[Date "2019.08.06"]
[Round "2.11"]
[White "De Putter, Sven"]
[Black "Boeren, Jurriaan"]
[Result "0-1"]
[ECO "C02"]
[WhiteElo "1319"]
[BlackElo "1522"]
[Annotator "NA"]
[PlyCount "60"]
[EventDate "2019.08.05"]
[EventType "swiss"]
[EventCountry "NED"]
[SourceTitle "playchess.com"]
[Source "ChessBase"]
[SourceQuality "1"]
[TimeControl "5400+30"]

1. e4 {[%emt 0:00:00]} e6 {[%emt 0:00:00]} 2. d4 {[%emt 0:00:00]} d5 {[%emt 0:00:00]} 3. e5 {[%emt 0:01:10]} c5 {[%emt 0:00:00]} 4. c3 {[%emt 0:00:05]} Nc6 {[%emt 0:00:05]} 5. Nf3 {[%emt 0:00:28]} Nge7 {[%emt 0:00:22]} 6. Bg5 {[%emt 0:04:43]} Qb6 {[%emt 0:01:33]} 7. Qb3 {[%emt 0:02:45]} Qxb3 {[%emt 0:01:07]} 8. axb3 {[%emt 0:00:08]} cxd4 {[%emt 0:00:32]} 9. cxd4 {[%emt 0:00:49]} Nf5 {[%emt 0:01:44]} 10. Bb5 {[%emt 0:04:41]} Bd7 {[%emt 0:01:09]} 11. Bxc6 {[%emt 0:01:12]} Bxc6 {[%emt 0:00:14]} 12. Nc3 {[%emt 0:01:13]} a6 {[%emt 0:03:28]} 13. O-O {[%emt 0:02:04]} Rc8 {[%emt 0:02:29]} 14. Rac1 {[%emt 0:02:49]} Bb4 {[%emt 0:01:59]} 15. Rfd1 {[%emt 0:05:05]} O-O {[%emt 0:01:08]} 16. h3 {[%emt 0:04:18]} Rc7 {[%emt 0:04:33]} 17. Na2 {[%emt 0:06:58]} Ba5 {[%emt 0:02:04]} 18. b4 {[%emt 0:03:35]} Bb6 {[%emt 0:00:09]} 19. Nc3 {[%emt 0:02:29]} h6 {[%emt 0:00:56]} 20. Bf4 {[%emt 0:04:13]} g5 {[%emt 0:04:18]} 21. Bh2 {[%emt 0:04:05]} Rfc8 {[%emt 0:00:40]} 22. Ra1 {[%emt 0:07:41]} Bd7 {[%emt 0:03:30]} 23. g4 {[%emt 0:22:51]} Ne7 {[%emt 0:00:44]} 24. h4 {[%emt 0:03:04]} gxh4 {[%emt 0:01:08]} 25. Nxh4 {[%emt 0:06:45]} Rc4 {[%emt 0:01:27]} 26. f4 {[%emt 0:03:26]} Bxd4+ {[%emt 0:01:07]} 27. Kg2 {[%emt 0:03:15]} Bxc3 {[%emt 0:00:20]} 28. bxc3 {[%emt 0:00:16]} Rxc3 {[%emt 0:00:13]} 29. f5 {[%emt 0:01:53]} exf5 {[%emt 0:00:41]} 30. Kg1 {[%emt 0:00:56]} fxg4 {[%emt 0:00:55]} 0-1

[Event "ONJK-C 2019"]
[Site "Borne"]
[Date "2019.08.06"]
[Round "2.14"]
[White "Wiggers, Finn"]
[Black "Buijnsters, Floris"]
[Result "1/2-1/2"]
[ECO "B01"]
[WhiteElo "1354"]
[BlackElo "1268"]
[Annotator "NA"]
[PlyCount "121"]
[EventDate "2019.08.05"]
[EventType "swiss"]
[EventCountry "NED"]
[SourceTitle "playchess.com"]
[Source "ChessBase"]
[SourceQuality "1"]
[TimeControl "5400+30"]

1. e4 {[%emt 0:00:00]} c6 {[%emt 0:00:00]} 2. d4 {[%emt 0:00:17]} d5 {[%emt 0:00:00]} 3. Nc3 {[%emt 0:00:25]} dxe4 {[%emt 0:00:00]} 4. Nxe4 {[%emt 0:00:28]} Bf5 {[%emt 0:00:00]} 5. Nc3 {[%emt 0:02:10]} Nf6 {[%emt 0:00:47]} 6. Nf3 {[%emt 0:01:07]} e6 {[%emt 0:00:20]} 7. Bd3 {[%emt 0:01:48]} Bxd3 {[%emt 0:01:03]} 8. Qxd3 {[%emt 0:01:16]} Bd6 {[%emt 0:00:37]} 9. O-O {[%emt 0:01:11]} O-O {[%emt 0:00:47]} 10. Re1 {[%emt 0:02:28]} Nbd7 {[%emt 0:00:37]} 11. Bd2 {[%emt 0:02:59]} Qc7 {[%emt 0:01:56]} 12. Ne4 {[%emt 0:06:38]} Nxe4 {[%emt 0:05:21]} 13. Rxe4 {[%emt 0:03:18]} Nf6 {[%emt 0:06:38]} 14. Rh4 {[%emt 0:01:58]} Rad8 {[%emt 0:01:51]} 15. Bg5 {[%emt 0:01:49]} h6 {[%emt 0:04:25]} 16. Bxf6 {[%emt 0:01:51]} gxf6 {[%emt 0:00:06]} 17. Rxh6 {[%emt 0:00:19]} f5 {[%emt 0:00:16]} 18. Ng5 {[%emt 0:02:45]} Bf4 {[%emt 0:02:00]} 19. Rh5 {[%emt 0:04:49]} Kg7 {[%emt 0:05:39]} 20. Qh3 {[%emt 0:02:04]} Bxg5 {[%emt 0:01:58]} 21. Rxg5+ {[%emt 0:01:46]} Kf6 {[%emt 0:00:05]} 22. Qh4 {[%emt 0:02:12]} Ke7 {[%emt 0:00:55]} 23. Rg8+ {[%emt 0:02:51]} Ke8 {[%emt 0:01:02]} 24. Rxf8+ {[%emt 0:00:44]} Kxf8 {[%emt 0:00:09]} 25. Rd1 {[%emt 0:00:17]} Qb6 {[%emt 0:00:24]} 26. b3 {[%emt 0:01:02]} c5 {[%emt 0:00:09]} 27. c3 {[%emt 0:04:15]} Ke8 {[%emt 0:03:03]} 28. Qh8+ {[%emt 0:03:18]} Ke7 {[%emt 0:00:10]} 29. Qe5 {[%emt 0:00:34]} Qa5 {[%emt 0:01:12]} 30. Rd3 {[%emt 0:05:29]} Qxa2 {[%emt 0:02:34]} 31. Qxc5+ {[%emt 0:00:30]} Kf6 {[%emt 0:01:13]} 32. Qe5+ {[%emt 0:00:14]} Ke7 {[%emt 0:00:22]} 33. Qc7+ {[%emt 0:00:15]} Rd7 {[%emt 0:00:19]} 34. Qc5+ {[%emt 0:02:04]} Kf6 {[%emt 0:00:37]} 35. Qe5+ {[%emt 0:08:48]} Ke7 {[%emt 0:00:13]} 36. Qe1 {[%emt 0:00:41]} Qxb3 {[%emt 0:00:19]} 37. h3 {[%emt 0:00:32]} a5 {[%emt 0:00:29]} 38. Kh2 {[%emt 0:02:38]} a4 {[%emt 0:01:09]} 39. Qa1 {[%emt 0:01:40]} b5 {[%emt 0:00:19]} 40. Rd1 {[%emt 0:01:16]} b4 {[%emt 0:17:16]} 41. Rb1 {[%emt 0:01:30]} Qxc3 {[%emt 0:00:20]} 42. Qxa4 {[%emt 0:01:57]} Rxd4 {[%emt 0:00:22]} 43. Qb5 {[%emt 0:06:32]} Kf6 {[%emt 0:02:55]} 44. Qe8 {[%emt 0:02:04]} b3 {[%emt 0:02:48]} 45. Qh8+ {[%emt 0:00:25]} Ke7 {[%emt 0:00:27]} 46. Rxb3 {[%emt 0:03:23]} Qc7+ {[%emt 0:04:00]} 47. g3 {[%emt 0:02:39]} Rd1 {[%emt 0:00:41]} 48. Qh4+ {[%emt 0:00:50]} Ke8 {[%emt 0:02:45]} 49. Qa4+ {[%emt 0:00:25]} Ke7 {[%emt 0:04:56]} 50. Rb7 {[%emt 0:01:21]} Qxb7 {[%emt 0:00:13]} 51. Qxd1 {[%emt 0:00:07]} Qb2 {[%emt 0:00:51]} 52. Kg2 {[%emt 0:00:57]} Qb7+ {[%emt 0:00:17]} 53. Qf3 {[%emt 0:00:08]} Qxf3+ {[%emt 0:01:13]} 54. Kxf3 {[%emt 0:00:07]} Kf6 {[%emt 0:00:06]} 55. Kf4 {[%emt 0:00:06]} e5+ {[%emt 0:00:39]} 56. Ke3 {[%emt 0:00:54]} Kg6 {[%emt 0:03:01]} 57. f4 {[%emt 0:00:45]} f6 {[%emt 0:03:00]} 58. g4 {[%emt 0:01:08]} fxg4 {[%emt 0:00:59]} 59. hxg4 {[%emt 0:00:08]} exf4+ {[%emt 0:00:21]} 60. Kxf4 {[%emt 0:00:10]} Kg7 {[%emt 0:00:36]} 61. Ke4 {[%emt 0:00:38]} 1/2-1/2

[Event "ONJK-C 2019"]
[Site "Borne"]
[Date "2019.08.06"]
[Round "3.1"]
[White "Klugstedt, Vincent"]
[Black "De Heij, Mees"]
[Result "1-0"]
[ECO "D13"]
[WhiteElo "1850"]
[BlackElo "1617"]
[Annotator "NA"]
[PlyCount "145"]
[EventDate "2019.08.05"]
[EventType "swiss"]
[EventCountry "NED"]
[SourceTitle "playchess.com"]
[Source "ChessBase"]
[SourceQuality "1"]
[TimeControl "5400+30"]

1. d4 {[%emt 0:00:00]} d5 {[%emt 0:00:00]} 2. c4 {[%emt 0:00:00]} c6 {[%emt 0:00:00]} 3. Nc3 {[%emt 0:00:12]} Nf6 {[%emt 0:00:00]} 4. cxd5 {[%emt 0:00:20]} cxd5 {[%emt 0:00:02]} 5. Nf3 {[%emt 0:00:46]} Nc6 {[%emt 0:00:43]} 6. Bf4 {[%emt 0:00:53]} Qb6 {[%emt 0:03:19]} 7. Qb3 {[%emt 0:07:17]} Qxb3 {[%emt 0:02:57]} 8. axb3 {[%emt 0:00:06]} a6 {[%emt 0:08:39]} 9. e3 {[%emt 0:04:09]} Bf5 {[%emt 0:03:04]} 10. Be2 {[%emt 0:03:40]} e6 {[%emt 0:00:37]} 11. O-O {[%emt 0:03:05]} Be7 {[%emt 0:00:49]} 12. Ne5 {[%emt 0:01:09]} Nxe5 {[%emt 0:00:28]} 13. Bxe5 {[%emt 0:00:18]} O-O {[%emt 0:00:17]} 14. Rfc1 {[%emt 0:00:43]} Rac8 {[%emt 0:02:06]} 15. Na4 {[%emt 0:01:30]} Ne4 {[%emt 0:03:27]} 16. Nb6 {[%emt 0:02:38]} Rxc1+ {[%emt 0:00:54]} 17. Rxc1 {[%emt 0:00:11]} Nd2 {[%emt 0:04:58]} 18. Rc7 {[%emt 0:08:14]} Bb4 {[%emt 0:04:05]} 19. Rxb7 {[%emt 0:01:59]} a5 {[%emt 0:01:00]} 20. Bd1 {[%emt 0:01:17]} Bb1 {[%emt 0:01:56]} 21. Rc7 {[%emt 0:01:44]} Ba2 {[%emt 0:01:20]} 22. Nd7 {[%emt 0:01:37]} Rd8 {[%emt 0:00:53]} 23. Nc5 {[%emt 0:00:14]} Bxc5 {[%emt 0:09:27]} 24. dxc5 {[%emt 0:00:58]} Bxb3 {[%emt 0:01:32]} 25. Bc3 {[%emt 0:01:59]} Bxd1 {[%emt 0:00:59]} 26. Bxd2 {[%emt 0:01:01]} Be2 {[%emt 0:01:23]} 27. Bxa5 {[%emt 0:03:27]} Ra8 {[%emt 0:00:26]} 28. b4 {[%emt 0:04:17]} g6 {[%emt 0:00:49]} 29. f3 {[%emt 0:00:35]} Kg7 {[%emt 0:00:38]} 30. Kf2 {[%emt 0:00:51]} Bb5 {[%emt 0:00:29]} 31. Rb7 {[%emt 0:03:27]} Be8 {[%emt 0:01:31]} 32. Bc7 {[%emt 0:01:12]} Rc8 {[%emt 0:00:42]} 33. Be5+ {[%emt 0:01:59]} Kh6 {[%emt 0:00:31]} 34. Bd6 {[%emt 0:00:47]} Kg5 {[%emt 0:03:38]} 35. b5 {[%emt 0:00:37]} Kf6 {[%emt 0:00:38]} 36. f4 {[%emt 0:00:54]} g5 {[%emt 0:01:14]} 37. g3 {[%emt 0:01:32]} g4 {[%emt 0:01:37]} 38. c6 {[%emt 0:00:18]} Bxc6 {[%emt 0:00:39]} 39. Be5+ {[%emt 0:00:48]} Kg6 {[%emt 0:00:21]} 40. bxc6 {[%emt 0:00:16]} Rxc6 {[%emt 0:00:06]} 41. Rb2 {[%emt 0:00:21]} Kf5 {[%emt 0:00:30]} 42. h3 {[%emt 0:00:46]} gxh3 {[%emt 0:02:18]} 43. Kf3 {[%emt 0:00:18]} h5 {[%emt 0:04:52]} 44. Rh2 {[%emt 0:01:24]} f6 {[%emt 0:00:11]} 45. Bb8 {[%emt 0:01:34]} Rc8 {[%emt 0:02:53]} 46. Ba7 {[%emt 0:00:35]} e5 {[%emt 0:00:09]} 47. Rxh3 {[%emt 0:00:54]} e4+ {[%emt 0:00:05]} 48. Ke2 {[%emt 0:00:19]} Kg6 {[%emt 0:04:24]} 49. Kd2 {[%emt 0:01:34]} Ra8 {[%emt 0:00:47]} 50. Bd4 {[%emt 0:00:40]} Ra3 {[%emt 0:00:23]} 51. Rh4 {[%emt 0:00:46]} f5 {[%emt 0:00:54]} 52. Rh1 {[%emt 0:00:36]} Ra2+ {[%emt 0:02:09]} 53. Kc3 {[%emt 0:00:10]} Rg2 {[%emt 0:00:06]} 54. Ra1 {[%emt 0:01:12]} Rxg3 {[%emt 0:00:10]} 55. Ra6+ {[%emt 0:00:16]} Kf7 {[%emt 0:01:09]} 56. Rf6+ {[%emt 0:00:17]} Ke7 {[%emt 0:00:02]} 57. Rxf5 {[%emt 0:00:12]} h4 {[%emt 0:00:32]} 58. Rxd5 {[%emt 0:01:25]} Rh3 {[%emt 0:00:41]} 59. Bc5+ {[%emt 0:00:21]} Ke6 {[%emt 0:00:53]} 60. Kd4 {[%emt 0:00:07]} Rh1 {[%emt 0:01:00]} 61. Kxe4 {[%emt 0:00:12]} h3 {[%emt 0:00:31]} 62. Re5+ {[%emt 0:00:25]} Kd7 {[%emt 0:00:07]} 63. Kf3 {[%emt 0:00:00]} Rg1 {[%emt 0:01:40]} 64. Rh5 {[%emt 0:00:00]} Rh1 {[%emt 0:01:02]} 65. Kg3 {[%emt 0:00:07]} Ke6 {[%emt 0:01:07]} 66. Rxh3 {[%emt 0:00:11]} Rg1+ {[%emt 0:00:11]} 67. Kf3 {[%emt 0:00:10]} Rf1+ {[%emt 0:00:13]} 68. Ke4 {[%emt 0:00:03]} Rc1 {[%emt 0:00:10]} 69. Rh6+ {[%emt 0:00:09]} Kd7 {[%emt 0:00:06]} 70. Bd4 {[%emt 0:00:04]} Rb1 {[%emt 0:01:17]} 71. Kd5 {[%emt 0:00:10]} Rb5+ {[%emt 0:00:11]} 72. Bc5 {[%emt 0:00:30]} Ra5 {[%emt 0:00:25]} 73. e4 {[%emt 0:00:05]} 1-0

[Event "ONJK-C 2019"]
[Site "Borne"]
[Date "2019.08.06"]
[Round "3.2"]
[White "De Rycke, Tyani"]
[Black "Ang, Rufus"]
[Result "1-0"]
[ECO "C42"]
[WhiteElo "1787"]
[BlackElo "1498"]
[Annotator "NA"]
[PlyCount "67"]
[EventDate "2019.08.05"]
[EventType "swiss"]
[EventCountry "NED"]
[SourceTitle "playchess.com"]
[Source "ChessBase"]
[SourceQuality "1"]
[TimeControl "5400+30"]

1. e4 {[%emt 0:00:00]} e5 {[%emt 0:00:00]} 2. Nf3 {[%emt 0:00:00]} Nf6 {[%emt 0:00:00]} 3. Nxe5 {[%emt 0:00:00]} d6 {[%emt 0:00:00]} 4. Nf3 {[%emt 0:00:00]} Nxe4 {[%emt 0:00:00]} 5. Qe2 {[%emt 0:00:00]} Qe7 {[%emt 0:00:03]} 6. d3 {[%emt 0:00:07]} Nf6 {[%emt 0:00:04]} 7. Bg5 {[%emt 0:00:11]} Nbd7 {[%emt 0:01:01]} 8. Nc3 {[%emt 0:00:34]} b6 {[%emt 0:00:40]} 9. Nb5 {[%emt 0:01:25]} Kd8 {[%emt 0:01:04]} 10. O-O-O {[%emt 0:02:28]} a6 {[%emt 0:02:34]} 11. Nbd4 {[%emt 0:00:41]} Bb7 {[%emt 0:00:29]} 12. Qd2 {[%emt 0:00:44]} c5 {[%emt 0:03:48]} 13. Re1 {[%emt 0:02:07]} Ne5 {[%emt 0:00:12]} 14. Nxe5 {[%emt 0:00:25]} dxe5 {[%emt 0:00:18]} 15. Nf3 {[%emt 0:02:29]} Bxf3 {[%emt 0:00:29]} 16. gxf3 {[%emt 0:00:08]} Qe6 {[%emt 0:00:26]} 17. Kb1 {[%emt 0:00:17]} a5 {[%emt 0:00:47]} 18. f4 {[%emt 0:00:14]} Qd5 {[%emt 0:00:55]} 19. Rg1 {[%emt 0:00:48]} Bd6 {[%emt 0:00:16]} 20. fxe5 {[%emt 0:00:49]} Bxe5 {[%emt 0:00:18]} 21. Bg2 {[%emt 0:00:13]} Qd4 {[%emt 0:00:26]} 22. c3 {[%emt 0:00:22]} Qd6 {[%emt 0:00:43]} 23. Bxa8 {[%emt 0:00:12]} Bxh2 {[%emt 0:00:42]} 24. Rh1 {[%emt 0:00:12]} Be5 {[%emt 0:00:11]} 25. f4 {[%emt 0:00:19]} Bxf4 {[%emt 0:06:16]} 26. Bxf4 {[%emt 0:00:20]} Qd7 {[%emt 0:00:32]} 27. Bg5 {[%emt 0:00:21]} Qd6 {[%emt 0:00:52]} 28. Rhf1 {[%emt 0:00:28]} h5 {[%emt 0:00:40]} 29. d4 {[%emt 0:00:58]} cxd4 {[%emt 0:00:48]} 30. Qxd4 {[%emt 0:00:14]} Qxd4 {[%emt 0:00:15]} 31. cxd4 {[%emt 0:00:05]} h4 {[%emt 0:00:04]} 32. Bxf6+ {[%emt 0:00:12]} gxf6 {[%emt 0:00:07]} 33. Rxf6 {[%emt 0:00:04]} Rh7 {[%emt 0:00:08]} 34. Rxb6 {[%emt 0:00:33]} 1-0